fUSD/lending_fUSD_20240113
["ID","MTS","AMOUNT","RATE_DAILY","PERIOD"]
[311445437,1705129839836,-1500.0,0.0002278,2]
[311445438,1705129839845,-150.0,0.00022782,2]
[311445439,1705129839856,-418.95927661,0.00022787,2]
[311445440,1705129839865,-4517.61764899,0.0002279,2]
[311445441,1705129839874,-150.0,0.0002279,2]
[311445442,1705129839883,-41382.0,0.00022795,2]
[311445443,1705129839892,-1020.34823228,0.00022795,2]
[311445444,1705129839902,-150.98,0.00022795,2]
[311445445,1705129839913,-1000.0,0.00022796,2]
[311445446,1705129839922,-150.0,0.00022796,2]
[311445447,1705129839932,-152.48921617,0.00022797,2]
[311445448,1705129839942,-526.91473963,0.00022798,2]
[311445449,1705129839951,-315.16310047,0.00022798,2]
[311445450,1705129839961,-303.11983838,0.00022798,2]
[311445451,1705129839971,-2943.34420832,0.00022798,2]
[311445452,1705129839980,-206.03318007,0.00022798,2]
[311445453,1705129839990,-222.7246654,0.00022798,2]
[311445454,1705129840004,-155.0,0.00022798,2]
[311445455,1705129840014,-15782.20891687,0.00022798,2]
[311445456,1705129840023,-131910.1191,0.000228,2]
[311445457,1705129840032,-56269.4124,0.000228,2]
[311445458,1705129840041,-1924.96706336,0.000228,2]
[311445459,1705129840050,-2050.81510881,0.000228,2]
[311445460,1705129840059,-2724.87130048,0.000228,2]
[311445461,1705129840068,-150.0,0.00022805,2]
[311445462,1705129840077,-150.0,0.00022807,2]
[311445463,1705129840086,-4517.61764899,0.00022808,2]
[311445464,1705129840095,-800.0,0.00022816,2]
[311445465,1705129840104,-1020.34823228,0.00022821,2]
[311445466,1705129840114,-150.0,0.00022823,2]
[311445467,1705129840123,-4517.61764899,0.00022827,2]
[311445468,1705129840133,-150.0,0.00022837,2]
[311445469,1705129840142,-4517.61764899,0.00022845,2]
[311445470,1705129840151,-150.0,0.00022845,2]
[311445471,1705129840161,-1020.34823228,0.00022847,2]
[311445472,1705129840170,-150.0,0.00022853,2]
[311445473,1705129840180,-4517.61764899,0.00022863,2]
[311445474,1705129840190,-500.0,0.00022866,2]
[311445475,1705129840204,-1020.34823228,0.00022874,2]
[311445476,1705129840214,-564.75601805,0.00022876,2]
[311445477,1705129840223,-4517.61764899,0.00022882,2]
[311445478,1705129840232,-150.0,0.00022886,2]
[311445479,1705129840241,-150.0,0.00022886,2]
[311445480,1705129840251,-150.0,0.00022888,2]
[311445481,1705129840263,-150.0,0.00022888,2]
[311445482,1705129840272,-150.0,0.00022888,2]
[311445483,1705129840281,-58000.0,0.00022891,2]
[311445484,1705129840290,-175.40785139,0.00022893,2]
[311445485,1705129840299,-152.48921617,0.00022894,2]
[311445486,1705129840308,-150.0,0.00022894,2]
[311445487,1705129840317,-500.0,0.00022895,2]
[311445488,1705129840327,-106551.64409119,0.00022896,2]
[311445489,1705129840336,-385.9718,0.00022896,2]
[311445490,1705129840346,-213.7777,0.00022896,2]
[311445491,1705129840355,-8359.8173,0.00022896,2]
[311445492,1705129840365,-175.40785139,0.00022897,2]
[311445493,1705129840374,-4536.13948098,0.00022899,2]
[311445494,1705129840384,-5000.0,0.000229,2]
[311445495,1705129840393,-20926.51,0.000229,2]
[311445496,1705129840402,-58000.0,0.000229,2]
[311445497,1705129840411,-175.40785139,0.000229,2]
[311445498,1705129840420,-1020.34823228,0.000229,2]
[311445499,1705129840430,-311.75797214,0.000229,2]
[311445501,1705129840440,-423.70885346,0.000229,2]
[311445502,1705129840450,-8113.6505,0.000229,2]
[311445503,1705129840459,-205.29749463,0.000229,4]
[311445504,1705129840468,-1924.96706336,0.000229,2]
[311445505,1705129840478,-2050.81510881,0.000229,2]
[311445506,1705129840487,-339.82820187,0.000229,2]
[311445507,1705129840497,-4517.61764899,0.000229,2]
[311445508,1705129840506,-339.82820173,0.000229,2]
[311445509,1705129840515,-339.82820173,0.000229,2]
[311445511,1705129840524,-2724.87130048,0.000229,2]
[311445513,1705129840534,-339.82820173,0.000229,2]
[311445514,1705129840544,-339.82820173,0.000229,2]
[311445515,1705129840553,-339.82820173,0.000229,2]
[311445516,1705129840562,-150.0,0.00022916,2]
[311445517,1705129840571,-150.98,0.00022924,2]
[311445518,1705129840581,-199.90214082,0.00022925,2]
[311445519,1705129840591,-1500.0,0.00022931,2]
[311445520,1705129840600,-500.0,0.00022938,2]
[311445521,1705129840610,-150.0,0.00022942,2]
[311445522,1705129840620,-150.0,0.00022944,2]
[311445523,1705129840629,-150.0,0.00022944,2]
[311445524,1705129840638,-150.0,0.00022949,2]
[311445525,1705129840648,-150.0,0.00022951,2]
[311445526,1705129840658,-150.0,0.00022961,2]
[311445527,1705129840668,-150.0,0.00022965,2]
[311445528,1705129840678,-1500.0,0.00022968,2]
[311445529,1705129840864,-215.1635691,0.00022968,2]
[311445530,1705129840873,-1500.0,0.00022972,2]
[311445531,1705129840883,-150.0,0.00022975,2]
[311445532,1705129840892,-293.29955994,0.00022989,2]
[311445533,1705129840901,-5194.47565066,0.00022991,2]
[311445534,1705129840911,-11714.24836039,0.00022991,2]
[311445535,1705129840921,-438.70757587,0.00022991,2]
[311445536,1705129840930,-159.15281528,0.00022992,2]
[311445537,1705129840940,-2357.46215418,0.00022992,2]
[311445538,1705129840949,-1139.0,0.00022993,2]
[311445539,1705129840959,-175.3949327,0.00022993,2]
[311445540,1705129840968,-155.57516898,0.00022994,2]
[311445541,1705129840977,-1433.6052629,0.00022994,2]
[311445542,1705129840986,-41736.63391685,0.00022994,2]
[311445543,1705129840995,-5577.28445236,0.00022994,2]
[311445544,1705129841005,-221.77818885,0.00022994,2]
[311445545,1705129841014,-3382.66570833,0.00022994,2]
[311445546,1705129841024,-486.30659878,0.00022994,2]
[311445547,1705129841033,-1213.31075835,0.00022994,2]
[311445548,1705129841042,-162.32363726,0.00022994,2]
[311445549,1705129841052,-318.39239097,0.00022994,2]
[311445550,1705129841061,-302.30135301,0.00022994,2]
[311445551,1705129841070,-525.39497036,0.00022994,2]
[311445552,1705129841079,-155.26734927,0.00022994,2]
[311445553,1705129841089,-1915.13815693,0.00022994,2]
[311445554,1705129841098,-637.66467994,0.00022994,2]
[311445555,1705129841107,-221.19148093,0.00022995,2]
[311445556,1705129841117,-387.95276072,0.00022995,2]
[311445557,1705129841126,-474.80041036,0.00022995,2]
[311445558,1705129841135,-7774.2456972,0.00022995,2]
[311445559,1705129841144,-2624.46612927,0.00022995,2]
[311445560,1705129841153,-4890.53780485,0.00022995,2]
[311445561,1705129841163,-155.48516503,0.00022995,2]
[311445562,1705129841174,-247.56117841,0.00022996,2]
[311445563,1705129841183,-2315.2817868,0.00022996,2]
[311445564,1705129841193,-155.0,0.00022996,2]
[311445565,1705129841203,-2000.0,0.00022997,2]
[311445566,1705129841212,-200.0,0.00022997,2]
[311445567,1705129841222,-254.62988043,0.00022998,2]
[311445568,1705129841231,-205.07566143,0.00022998,2]
[311445569,1705129841241,-1206.80470232,0.00022998,2]
[311445570,1705129841251,-404.43696177,0.00022998,2]
[311445571,1705129841260,-155.61937396,0.00022998,2]
[311445572,1705129841269,-1007.45577369,0.00022998,2]
[311445573,1705129841278,-245.70688159,0.00022998,2]
[311445574,1705129841287,-200.13200503,0.00022998,2]
[311445575,1705129841296,-155.50563666,0.00022998,2]
[311445576,1705129841306,-3293.04376977,0.00022999,2]
[311445577,1705129841315,-150.0,0.00022999,2]
[311445578,1705129841324,-150.0,0.00022999,2]
[311445579,1705129841334,-150.0,0.00022999,2]
[311445580,1705129841343,-150.0,0.00022999,2]
[311445581,1705129841353,-150.0,0.00022999,2]
[311445582,1705129841362,-150.0,0.00022999,2]
[311445583,1705129841371,-150.0,0.00022999,2]
[311445584,1705129841381,-150.0,0.00022999,2]
[311445585,1705129841390,-150.0,0.00022999,2]
[311445586,1705129841398,-150.0,0.00022999,2]
[311445587,1705129841407,-150.0,0.00022999,2]
[311445588,1705129841416,-150.0,0.00022999,2]
[311445589,1705129841426,-737.71,0.00022999,2]
[311445590,1705129841436,-3491168.0668007,0.00023,2]
[311445591,1705129841445,-213446.62301152,0.00023,2]
[311445592,1705129841454,-8758574.81905551,0.00023,2]
[311445593,1705129841468,-824976.04090568,0.00023,2]
[311445594,1705129841480,-214250.399044,0.00023,2]
[311445595,1705129841491,-1408.52822295,0.00023,2]
[311445596,1705129841502,-30960.69739232,0.00023,2]
[311445603,1705129842793,-343.63380356,0.00022767,2]
[311445606,1705129843825,-232.22138914,0.00022766,2]
[311445607,1705129843835,-888.53335664,0.00022767,2]
[311445608,1705129843847,-1014227.37202704,0.00022767,2]
[311445609,1705129843857,-25161.2266341,0.00022796,2]
[311445610,1705129843866,-152.51302001,0.00022796,2]
[311445611,1705129843876,-339.82820173,0.000229,2]
[311445612,1705129843885,-573943.08285794,0.00023,2]
[311445613,1705129843904,-915.35175188,0.00023,2]
[311445614,1705129843928,-339.82820173,0.000229,2]
[311445615,1705129843937,-1685.35147047,0.00023,2]
[311445616,1705129843949,-8277.916873,0.00023,2]
[311445617,1705129843961,-8414.37378662,0.00023,2]
[311445621,1705129844069,-388.39049616,0.00023,2]
[311445622,1705129844082,-463.02173637,0.00023,2]
[311445623,1705129844094,-1590.32321476,0.00023,2]
[311445624,1705129844105,-275.16935946,0.00023,2]
[311445625,1705129844117,-371.32182864,0.00023,2]
[311445629,1705129846000,-704.46525614,0.00023,2]
[311445630,1705129846012,-360.4750001,0.00023,2]
[311445631,1705129846026,-2151.0,0.00023,2]
[311445632,1705129846056,-2581.55187985,0.00023,2]
[311445633,1705129846068,-22620.97509184,0.00023,2]
[311445634,1705129846079,-35048.7527446,0.00023,2]
[311445635,1705129846091,-342.01478654,0.00023,2]
[311445636,1705129846102,-2031.00261675,0.00023,2]
[311445637,1705129846114,-404.04653892,0.00023,2]
[311445638,1705129846132,-605.505404,0.00023,2]
[311445639,1705129846150,-319.290005,0.00023,2]
[311445640,1705129846162,-621.7494999,0.00023,2]
[311445641,1705129846181,-1458.84703385,0.00023,2]
[311445642,1705129846193,-997.6565351,0.00023,2]
[311445643,1705129846205,-1412.60118427,0.00023,2]
[311445644,1705129846218,-3717.25421335,0.00023,2]
[311445645,1705129846229,-323.15518711,0.00023,2]
[311445646,1705129846242,-300.0,0.00023,2]
[311445649,1705129846950,-1461.63419047,0.00023,2]
[311445650,1705129846997,-432.27653367,0.00023,2]
[311445651,1705129857856,1966.3131,0.00021915,2]
[311445652,1705129870752,1497.69144469,0.00020697,5]
[311445653,1705129893753,205.0,0.00021273,2]
[311445654,1705129922179,2081.1119888,0.00021371,7]
[311445655,1705129963428,1000.0,0.00021863,2]
[311445656,1705129969374,259.3,0.00019945,2]
[311445657,1705129981467,155.94,0.00021755,2]
[311445658,1705129981706,155.94,0.00021953,2]
[311445659,1705130032758,200.0,0.00021671,2]
[311445660,1705130053796,168.89,0.00021637,2]
[311445661,1705130076078,364.3,0.00021667,2]
[311445662,1705130218053,2000.0,0.00021621,2]
[311445663,1705130265836,159.7,0.00021787,2]
[311445664,1705130266006,159.7,0.00021949,2]
[311445665,1705130320038,283.07869913,0.00021498,2]
[311445666,1705130386146,165.99,0.00021792,2]
[311445667,1705130430857,246.33,0.00019669,2]
[311445668,1705130431287,246.33,0.00021933,2]
[311445669,1705130500260,152.46,0.00021573,2]
[311445670,1705130625609,1000.0,0.00021417,2]
[311445671,1705130627482,2000.0,0.00021417,2]
[311445672,1705130661957,340.01,0.00021398,2]
[311445673,1705130735913,159.7,0.00021541,2]
[311445674,1705130737221,159.7,0.00021766,2]
[311445675,1705130737277,159.7,0.0002199,2]
[311445676,1705130858355,155.35,0.00021612,2]
[311445677,1705130866928,221.69,0.00019481,2]
[311445678,1705130867937,221.69,0.00021744,2]
[311445679,1705130886477,1491.0,0.00031,120]
[311445680,1705131032420,-155.94,0.00022151,2]
[311445681,1705131032429,-160.30976192,0.00022207,2]
[311445682,1705131032438,-159.7,0.00022215,2]
[311445683,1705131032447,-160.30976186,0.00022234,2]
[311445684,1705131032457,-160.30976186,0.00022261,2]
[311445685,1705131032466,-1928.2401,0.00022287,2]
[311445686,1705131032475,-160.30976186,0.00022288,2]
[311445687,1705131032484,-211.33175608,0.00022289,2]
[311445688,1705131032493,-1228.1410811,0.0002229,2]
[311445690,1705131032600,-420.97784879,0.0002229,2]
[311445691,1705131032609,-387.23,0.0002229,2]
[311445692,1705131032618,-319.62,0.0002229,2]
[311445693,1705131032627,-152.46,0.00022292,2]
[311445694,1705131032637,-710.61,0.00022306,2]
[311445695,1705131032646,-231.34211921,0.00022307,2]
[311445696,1705131032666,-480.75788079,0.00022307,2]
[311445697,1705131032676,-242.02231918,0.00022307,2]
[311445698,1705131032687,-472.15768082,0.00022307,2]
[311445699,1705131032696,-1000.0,0.00022307,2]
[311445700,1705131032705,-255.80231918,0.00022307,2]
[311445702,1705131038165,-395.2299961,0.00022307,2]
[311445703,1705131038177,-76.83768472,0.00022307,2]
[311445704,1705131038186,-150.99,0.00022307,2]
[311445705,1705131038195,-132.3469183,0.00022315,2]
[311445706,1705131038207,-27.96284356,0.00022315,2]
[311445707,1705131038218,-160.30976186,0.00022342,2]
[311445708,1705131038227,-155.94,0.00022348,2]
[311445709,1705131038237,-160.30976186,0.00022369,2]
[311445710,1705131038247,-340.01,0.00022376,2]
[311445711,1705131038256,-185.79217392,0.00022378,2]
[311445712,1705131038266,-155.60079496,0.00022385,2]
[311445713,1705131038275,-5880.98996816,0.00022388,2]
[311445714,1705131038299,-8707.95527953,0.00022388,2]
[311445715,1705131038329,-544.38170658,0.00022388,2]
[311445716,1705131038341,-3807.05788132,0.00022388,2]
[311445717,1705131038373,-540.7543064,0.00022388,2]
[311445718,1705131038385,-534.0062643,0.00022388,2]
[311445719,1705131038412,-1322.7258504,0.00022388,2]
[311445720,1705131038553,-69173.12729493,0.00022388,2]
[311445721,1705131038564,-13726.92838059,0.00022388,2]
[311445722,1705131038597,-925143.70818746,0.00022388,2]
[311445723,1705131038607,-80152.59905084,0.00022389,2]
[311445724,1705131038618,-3946.44737005,0.00022389,2]
[311445725,1705131038630,-824976.04090568,0.00022389,2]
[311445726,1705131038642,-146950.16971191,0.00022389,2]
[311445727,1705131038651,-67300.22933209,0.0002239,2]
[311445728,1705131038667,-6589.64192059,0.0002239,2]
[311445729,1705131038679,-398.02173064,0.0002239,2]
[311445730,1705131038690,-44771.72879925,0.0002239,2]
[311445731,1705131038702,-7316.09580236,0.0002239,2]
[311445732,1705131038714,-7280.84366852,0.0002239,2]
[311445733,1705131038726,-11000.0,0.0002239,2]
[311445734,1705131038738,-4500.0,0.0002239,2]
[311445741,1705131041085,-9199.28140038,0.0002239,2]
[311445742,1705131041097,-17891.5678241,0.0002239,2]
[311445743,1705131041108,-287.27274001,0.0002239,2]
[311445744,1705131041135,-555.900003,0.0002239,2]
[311445745,1705131041147,-855.30664726,0.0002239,2]
[311445746,1705131041158,-250.5,0.0002239,2]
[311445747,1705131041169,-824.1117,0.0002239,2]
[311445748,1705131041180,-22172.38829488,0.0002239,2]
[311445749,1705131041191,-5610.39032302,0.0002239,2]
[311445750,1705131041224,-700.24778108,0.0002239,2]
[311445751,1705131043697,-12475.1015872,0.0002239,2]
[311445752,1705131043726,-4382.23209643,0.0002239,2]
[311445753,1705131043737,-1104.43424814,0.0002239,2]
[311445754,1705131043748,-4321.0225,0.0002239,2]
[311445755,1705131043775,-30129.16240105,0.0002239,2]
[311445756,1705131043785,-11812.0004714,0.00022395,2]
[311445757,1705131043797,-411.30428463,0.00022395,2]
[311445758,1705131043809,-7862.55894397,0.00022395,2]
[311445759,1705131043818,-499.99,0.00022395,2]
[311445760,1705131043828,-1007.82347343,0.00022395,2]
[311445761,1705131043838,-1007.82347343,0.00022395,2]
[311445762,1705131043847,-67.05626378,0.00022396,2]
[311445763,1705131043859,-93.25349808,0.00022396,2]
[311445764,1705131043869,-181.12466285,0.00022396,2]
[311445765,1705131043879,-159.7,0.00022439,2]
[311445766,1705131043888,-2478.6934936,0.00022497,2]
[311445767,1705131043898,-655.07161169,0.00022497,2]
[311445768,1705131043909,-2845.5372723,0.00022497,2]
[311445769,1705131043919,-155.94,0.00022546,2]
[311445770,1705131043928,-206.0,0.00022576,2]
[311445771,1705131043937,-6232.65966456,0.000226,2]
[311445772,1705131043961,-9880.18113544,0.000226,2]
[311445773,1705131043972,-159.7,0.00022663,2]
[311445774,1705131043981,-935.51821127,0.00022668,2]
[311445775,1705131043993,-946.83302809,0.00022668,2]
[311445776,1705131044009,-3117.64876064,0.00022668,2]
[311445777,1705131044018,-155.94,0.00022744,2]
[311445778,1705131044028,-171.68272656,0.00022768,2]
[311445779,1705131044037,-150.0,0.00022775,2]
[311445780,1705131044047,-150.0,0.00022781,2]
[311445781,1705131044056,-150.0,0.00022787,2]
[311445782,1705131044065,-150.0,0.00022789,2]
[311445783,1705131044074,-150.0,0.00022804,2]
[311445784,1705131044084,-150.0,0.00022805,2]
[311445785,1705131044093,-150.0,0.00022813,2]
[311445786,1705131044103,-200.0,0.00022815,2]
[311445787,1705131044112,-800.0,0.00022815,2]
[311445788,1705131044121,-500.0,0.00022815,2]
[311445789,1705131044131,-500.0,0.00022816,2]
[311445790,1705131044140,-150.0,0.00022819,2]
[311445791,1705131044150,-927.09773512,0.0002282,2]
[311445792,1705131044159,-150.0,0.00022827,2]
[311445793,1705131044169,-150.0,0.00022827,2]
[311445794,1705131044178,-300.0,0.00022838,2]
[311445795,1705131044187,-730.3,0.00022847,2]
[311445796,1705131044197,-150.0,0.00022849,2]
[311445797,1705131044206,-150.0,0.00022862,2]
[311445798,1705131044216,-150.0,0.00022862,2]
[311445799,1705131044226,-300.0,0.00022863,2]
[311445800,1705131044237,-150.0,0.00022885,2]
[311445801,1705131044246,-150.0,0.00022888,2]
[311445802,1705131044255,-1500.0,0.00022889,2]
[311445803,1705131044265,-150.0,0.00022898,2]
[311445804,1705131044274,-975.0,0.000229,2]
[311445805,1705131044284,-203.89692119,0.000229,2]
[311445806,1705131044293,-203.89692103,0.000229,2]
[311445807,1705131044303,-203.89692103,0.000229,2]
[311445808,1705131044313,-203.89692103,0.000229,2]
[311445809,1705131044322,-203.89692103,0.000229,2]
[311445810,1705131044331,-203.89692103,0.000229,2]
[311445811,1705131044340,-203.89692103,0.000229,2]
[311445812,1705131044349,-203.89692103,0.000229,2]
[311445813,1705131044359,-203.89692103,0.000229,2]
[311445814,1705131044368,-203.89692103,0.000229,2]
[311445815,1705131044377,-203.89692103,0.000229,2]
[311445816,1705131044386,-203.89692103,0.000229,2]
[311445817,1705131044395,-203.89692103,0.000229,2]
[311445818,1705131044405,-203.89692103,0.000229,2]
[311445819,1705131044414,-203.89692103,0.000229,2]
[311445820,1705131044423,-203.89692103,0.000229,2]
[311445821,1705131044432,-203.89692103,0.000229,2]
[311445822,1705131044441,-203.89692103,0.000229,2]
[311445823,1705131044449,-203.89692103,0.000229,2]
[311445824,1705131044458,-203.89692103,0.000229,2]
[311445825,1705131044468,-263.33176147,0.000229,2]
[311445826,1705131044477,-2660.18497959,0.000229,2]
[311445827,1705131044507,-14113.96610981,0.000229,2]
[311445828,1705131044517,-152.51301999,0.000229,2]
[311445829,1705131044526,-205.29749463,0.000229,4]
[311445830,1705131044535,-150.0,0.00022905,2]
[311445831,1705131044545,-1500.0,0.00022905,2]
[311445832,1705131044555,-150.0,0.00022913,2]
[311445833,1705131044563,-288.69862377,0.00022927,2]
[311445834,1705131044572,-150.0,0.00022932,2]
[311445835,1705131044582,-150.0,0.00022939,2]
[311445836,1705131044591,-235.0,0.00022939,2]
[311445837,1705131044600,-155.94,0.00022942,2]
[311445838,1705131044609,-150.0,0.00022944,2]
[311445839,1705131044619,-150.0,0.00022948,2]
[311445840,1705131044628,-150.0,0.00022952,2]
[311445841,1705131044637,-150.0,0.00022954,2]
[311445842,1705131044647,-150.0,0.00022964,2]
[311445843,1705131044656,-150.0,0.0002297,2]
[311445844,1705131044665,-150.0,0.0002299,2]
[311445845,1705131044674,-150.0,0.00022992,2]
[311445846,1705131044684,-150.0,0.00022994,2]
[311445847,1705131044693,-150.0,0.00022995,2]
[311445848,1705131044702,-139031.4851079,0.00022995,2]
[311445849,1705131044711,-4265.9869825,0.00022995,2]
[311445850,1705131044722,-209.38155424,0.00022999,2]
[311445851,1705131044732,-2805.46065223,0.00022999,2]
[311445852,1705131044741,-230929.18145938,0.00023,2]
[311445853,1705131044757,-816613.34207691,0.00023,2]
[311445854,1705131044769,-8778.805707,0.00023,2]
[311445855,1705131044826,-33834.45552623,0.00023,2]
[311445856,1705131044875,-57908.85515246,0.00023,2]
[311445857,1705131044886,-12946.2,0.00023,2]
[311445858,1705131044951,-408.60358709,0.00022389,2]
[311445859,1705131044961,-144807.44651555,0.00023,2]
[311445863,1705131046279,-499.99,0.00022927,2]
[311445864,1705131046288,-987.92624494,0.00023,2]
[311445865,1705131046299,-15376.37024967,0.00023,2]
[311445866,1705131046355,-715.14469,0.00023,2]
[311445867,1705131046462,-348.77523253,0.00023,2]
[311445868,1705131046513,-1446.84122965,0.00023,2]
[311445869,1705131046525,-674.21233965,0.00023,2]
[311445873,1705131046885,-2283.88972109,0.00023,2]
[311445874,1705131046897,-431.885,0.00023,2]
[311445878,1705131055966,3158.22940257,0.00021848,2]
[311445879,1705131057036,187.70348537,0.00021848,2]
[311445880,1705131057846,447.10818586,0.00020468,2]
[311445881,1705131065071,450.0,0.00020468,2]
[311445882,1705131068433,210.75177534,0.00020697,2]
[311445916,1705131079827,514.46378648,0.00020466,2]
[311445917,1705131084429,360.86535805,0.00020468,2]
[311445918,1705131084658,730.23396119,0.00021,2]
[311445919,1705131086661,155.0,0.00020468,2]
[311445920,1705131087204,282.96315441,0.00020468,2]
[311445965,1705131101685,360.46060217,0.00020468,2]
[311445966,1705131102539,157.41680398,0.00020468,2]
[311445967,1705131104465,590.01141518,0.00021,2]
[311445968,1705131106956,200.0,0.00021989,2]
[311445969,1705131107385,287.15291809,0.00020468,2]
[311445970,1705131124205,205.0,0.00021576,2]
[311445971,1705131126819,1050.0,0.00021983,2]
[311445972,1705131149939,256.441598,0.0002193,2]
[311445973,1705131156341,200.0,0.00021394,2]
[311445974,1705131171986,250.0,0.00021976,2]
[311445975,1705131172243,174.84,0.00021976,2]
[311445976,1705131221331,2000.0,0.00021641,2]
[311445977,1705131248133,156.99961798,0.00021937,2]
[311445978,1705131263945,168.57,0.00017241,2]
[311445979,1705131299960,23900.0,0.00021513,2]
[311445980,1705131327669,958.9625,0.00021935,2]
[311445981,1705131336639,516.35,0.00021976,2]
[311445982,1705131338728,500.0,0.00021918,2]
[311445983,1705131340969,1427.72502112,0.00021975,2]
[311445984,1705131363628,3843.19,0.00021918,2]
[311445985,1705131383696,331.42,0.00019575,2]
[311445986,1705131384076,331.42,0.00021839,2]
[311445987,1705131409544,168.44,0.00021465,2]
[311445988,1705131421381,160.96,0.00021707,2]
[311445989,1705131507490,482.17,0.00021462,2]
[311445992,1705131595607,840.0,0.00021535,2]
[311446031,1705131637199,150.0,0.00021862,2]
[311446032,1705131637442,150.0,0.00021937,2]
[311446038,1705131643489,176.13,0.00022,2]
[311446039,1705131643707,153.09,0.00021618,2]
[311446060,1705131664490,150.0,0.00022,2]
[311446061,1705131691133,5890.3187,0.00021915,2]
[311446062,1705131729005,23900.0,0.00021594,2]
[311446063,1705131734537,394.78315989,0.00022,2]
[311446064,1705131735220,494.14360933,0.00022,2]
[311446065,1705131738104,419.51466617,0.00021999,2]
[311446066,1705131754099,420.16395157,0.00021982,2]
[311446068,1705131756896,155.0,0.00022,2]
[311446069,1705131767861,5252.71478118,0.00022,2]
[311446071,1705131783970,258.17,0.00021638,2]
[311446077,1705131790830,500.0,0.00021918,2]
[311446086,1705131814557,394.78315989,0.00022,2]
[311446090,1705131829406,155.0,0.00022,2]
[311446091,1705131834453,2000.0,0.00021638,2]
[311446092,1705131840366,5252.71478118,0.00022,2]
[311446093,1705131859637,298.27,0.00019637,2]
[311446094,1705131859855,298.27,0.00021901,2]
[311446105,1705131915914,155.0,0.00022,2]
[311446116,1705131948011,450.02,0.00021561,2]
[311446168,1705132154300,150.0,0.00021894,2]
[311446169,1705132154691,150.0,0.00021982,2]
[311446170,1705132160368,328.0,0.00021585,2]
[311446180,1705132185278,23900.0,0.0002158,2]
[311446192,1705132231369,-433.3649623,0.00022001,2]
[311446197,1705132233249,-566.6350377,0.00022001,2]
[311446198,1705132233260,-153.09,0.0002205,2]
[311446199,1705132233270,-150.0,0.00022069,2]
[311446200,1705132233283,-1115.17709825,0.00022078,2]
[311446201,1705132233295,-744.83993833,0.00022078,2]
[311446202,1705132233324,-1326.45160994,0.00022078,2]
[311446203,1705132233333,-156.99961797,0.00022088,2]
[311446204,1705132233343,-150.0,0.00022157,2]
[311446205,1705132233353,-150.0,0.00022187,2]
[311446206,1705132233362,-587.6711346,0.00022188,2]
[311446207,1705132234022,258.17,0.0002155,2]
[311446208,1705132237405,-206.3112654,0.00022188,2]
[311446209,1705132237415,-3827.86832535,0.00022188,2]
[311446210,1705132237573,-2834.05997465,0.00022188,2]
[311446211,1705132237582,-150.0,0.00022245,2]
[311446212,1705132237592,-1478.34181472,0.00022286,2]
[311446213,1705132237602,-391.0576,0.00022287,2]
[311446214,1705132237611,-499.99,0.00022287,2]
[311446215,1705132237620,-5000.0,0.00022288,2]
[311446216,1705132237629,-288.9937,0.00022288,2]
[311446217,1705132237638,-19482.9798,0.00022288,2]
[311446218,1705132237647,-9545.9551,0.00022288,2]
[311446219,1705132237656,-160.96,0.00022291,2]
[311446220,1705132237665,-156.99961797,0.00022291,2]
[311446221,1705132237674,-150.0,0.00022333,2]
[311446222,1705132237683,-174.84,0.00022416,2]
[311446223,1705132237692,-150.0,0.0002242,2]
[311446224,1705132237702,-153.09,0.00022483,2]
[311446225,1705132237711,-156.99961797,0.00022494,2]
[311446226,1705132237720,-150.0,0.00022508,2]
[311446227,1705132237729,-150.0,0.00022517,2]